Workbook

Sheet Menu
A1: This is a farm business decision calculator that has 5 worksheets. There are fields that can be completed by the user. It is up to 28 columns wide and 73 rows.
A2: Welcome to the Custom Farmwork Rate Calculator Menu Page
A17: The Custom Farmwork Rate Calculator is an excel worksheet that allows you to calculate what to charge for custom farmwork.
A18: Also included are charts of machinery costs that are required for the calculations and a factsheet containing the 2024 Survey of
A19: Custom Farmwork Rates charged in Ontario and a guide to writing custom farmwork agreements.
A21: The Short-term Equipment Rental Rate Calculator is an excel worksheet that allows you to calculate what to charge for short-term
A22: equipment rentals.
A23: Several of the cells have a red triangle in the upper right hand corner of the cell. By moving your mouse cursor over this triangle, a brief description of the input will be displayed.
A25: Developed by John Molenhuis
A26: Business Analysis and Cost of Production Program Specialist
A27: OMAFA, Brighton
A28: email: john.molenhuis@ontario.ca
A29: 2025-06-01
A32: End of worksheet

Sheet Calculator
B2: Custom Farmwork Rate Calculator
B3: Numbers/text in blue, yellow shaded areas can be edited/changed
B4: GENERAL PARAMETERS
B5: Annual interest rate *** | C5: 0.05 | D5: Fuel cost per litre | E5: 1.35
B6: Insurance and housing rate (% of purchase price) | C6: 0.01 | D6: Fuel consumption - litres/engine hp.hr | E6: 0.192 | AB6: 2WD tractor | AC6: 2WD tractors | AF6: 2WD tractors
D7: Operator labour (self or hired) rate per hour | E7: 27 | AB7: Front wheel assist tractor | AC7: FWA tractors | AF7: FWA tractors
D8: Return to management, administration costs | E8: 0.15 | AB8: 4WD tractor | AC8: 4WD tractors | AF8: 4WD tractors
B9: POWER UNIT (TRACTOR OR SELF-PROPELLED (SP) MACHINE) | AB9: Tracked tractor | AC9: Self Propelled combines | AF9: Self Propelled combines
B10: Rated engine horsepower | C10: 375 | D10: SP Rotary combine | AB10: SP Rotary combine | AC10: Self propelled high clearance sprayer | AF10: Self propelled high clearance sprayer
B11: Life (years) | C11: =IF(D10<>"",VLOOKUP(D10,DeprRep,3,FALSE),0) -> 12 | D11: Purchase price | E11: 740000 | AB11: SP Swather | AC11: Self propelled forage harvesters | AF11: Self propelled forage harvesters
B12: Acres/year | C12: =C15*E12 -> 2550 | D12: Hours per year | E12: =IF(D10<>"",VLOOKUP(D10,DeprRep,2,FALSE),0) -> 250 | AB12: SP Forage harvester | AC12: Depreciation
D13: Fuel Used - litres/hour (see Table 5) | E13: =C10*E6 -> 72 | AB13: SP Forage harvester header | AC13: Trade in value
AB14: SP Mower/conditioner | AC14: Repairs | AD14: =VLOOKUP(D10,DeprRep,4) -> 3.3
B15: Work rate: Acres/hour (see table 5) | C15: =C16*C17*(C18*100)/825 -> 10.2 | D15: Annual depreciation rate (%) from Table 3 | E15: =IF(D10<>"",VLOOKUP(D10,DeprRep,4,FALSE),0) -> 5.6 | AB15: SP small square bale mover
B16: Average speed (miles per hour) | C16: 3.3 | D16: Annual repair rate (%) from Table 3 | E16: =IF(D10<>"",VLOOKUP(D10,DeprRep,5,FALSE),0) -> 2.63 | AB16: High clearance sprayers | AD16: =VLOOKUP(D10,Tables!#REF!,5) -> 
B17: Implement width (feet) | C17: 30
B18: Field efficiency (%) | C18: 0.85 | D18: Trade in Value** | E18: =IF(E15=0,0,E11-(E11*E15/100*C11)) -> 242720
B20: Annual Fixed Cost | E20: Total annual $ | F20: $ per hour | G20: $ per acre | AB20: 4–18-in. furrow plow | AC20: Rigid headers
B21: Capital recovery* | AB21: 6–18-in. furrow plow | AC21: Pickup headers
B22: purchase price – trade-in value | D22: =E11-E18 -> 497280 | AB22: 8–18-in. furrow plow | AC22: Flex headers
B23: capital recovery factor (from Table 4) | C23: x | D23: =IFERROR((C5*(1+C5)^C11)/((1+C5)^C11-1),0) -> 0.11282541 | AB23: 24-ft field cultivator | AC23: Draper headers
D24: =D22*D23 -> 56105.8199 | AB24: 31-ft field cultivator | AC24: Corn headers
B25: trade-in value x annual interest rate** | C25: + | D25: =E18*C5 -> 12136 | AB25: 44-ft field cultivator | AC25: SP Swather
B26: Total capital recovery | E26: =D24+D25 -> 68241.8199 | F26: =IFERROR(E26/$E$12,0) -> 272.9672796 | G26: =IFERROR(F26/$C$15,0) -> 26.761498 | AB26: 16-ft chisel plow | AC26: Grain carts
AB27: 21-ft chisel plow | AC27: Powered augers
B28: Insurance & housing = | D28: ="purchase price x "&$C$6*100&" %" -> purchase price x 1 % | E28: =E11*C6 -> 7400 | F28: =IFERROR(E28/$E$12,0) -> 29.6 | G28: =IFERROR(F28/$C$15,0) -> 2.901960784 | AB28: 24-ft tandem disk | AC28: PTO augers
B29: Total Fixed Cost | E29: =SUM(E26:E28) -> 75641.8199 | F29: 302.5672796 | G29: 29.66345878 | H29: (A) | AB29: 30-ft tandem disk | AC29: Grain vac
AB30: 10-ft offset disk | AC30: PT Mower/conditioner (sickle)
B31: Annual Operating Cost | AB31: 16-ft offset disk | AC31: PT Mower/conditioner (disc)
B32: Fuel (Table 5) = | D32: (litres/hour x hours/year x fuel cost/litre) | E32: =E13*E12*E5 -> 24300 | F32: =IFERROR(E32/$E$12,0) -> 97.2 | G32: =IFERROR(F32/$C$15,0) -> 9.529411765 | AB32: 21-ft vertical tillage | AC32: Hay rake (wheel)
B33: Repairs and maintenance = | D33: annual repair rate x purchase price | E33: =E11*E16/100 -> 19462 | F33: 77.848 | G33: 7.632156863 | AB33: 30-ft vertical tillage | AC33: Round baler
B34: Total Operating Costs | E34: =SUM(E32:E33) -> 43762 | F34: 175.048 | G34: 17.16156863 | H34: (B) | AB34: 43-ft vertical tillage | AC34: Large square baler
B35: Total Power Unit Costs | E35: =SUM(E34,E29) -> 119403.8199 | F35: 477.6152796 | G35: 46.82502741 | AB35: 12-row strip tillage | AC35: Small square baler
B36: + IMPLEMENT 1 (TILLAGE IMPLEMENT, PTO MACHINE, OTHER) | D36: Corn headers | AB36: 6R – 30-in. row crop planter | AC36: PT round bale mover
D37: 12R – 30-in. corn hd | AB37: 12R – 30-in. row crop planter | AC37: PT large square bale mover
B38: Life (years) | C38: =IF(D36<>"",VLOOKUP(D36,DeprRep,3,FALSE),0) -> 15 | D38: Purchase Price | E38: 170000 | AB38: 16R – 30-in. row crop planter | AC38: Air drills (independent openers)
B39: Acres/year | C39: =E39*C15 -> 1020 | D39: Hours per year | E39: =IF(D36<>"",VLOOKUP(D36,DeprRep,2,FALSE),0) -> 100 | AB39: 6R – 30-in. minimum-till planter | AC39: Air hoe drills
AB40: 12R – 30-in. minimum-till planter | AC40: Air disk drills
B41: Trade in Value** | C41: =IF(E41="","",E38-(E38*E41/100*C38)) -> 57800 | D41: Annual depreciation rate (%) from Table 3 | E41: =IF(D36<>"",VLOOKUP(D36,DeprRep,4,FALSE),0) -> 4.4 | AB41: 16R – 30-in. minimum-till planter | AC41: Air seeder
D42: Annual repair rate (%) from Table 3 | E42: =IF(D36<>"",VLOOKUP(D36,DeprRep,5,FALSE),0) -> 2.94 | AB42: 25-ft grain drill | AC42: Row crop planters
B43: Annual Fixed Cost | E43: Total annual $ | F43: $ per hour | G43: $ per acre | AB43: 35-ft grain drill | AC43: Plows
B44: Capital recovery* | AB44: 12-ft presswheel drill | AC44: Disks
B45: purchase price – trade-in value | D45: =E38-C41 -> 112200 | AB45: 20-ft presswheel drill | AC45: Cultivators
B46: capital recovery factor (from Table 4) | C46: x | D46: =IFERROR((C5*(1+C5)^C38)/((1+C5)^C38-1),0) -> 0.09634228761 | AB46: 15-ft no-till drill | AC46: Standard harrows
D47: =D45*D46 -> 10809.60467 | AB47: 20-ft no-till drill | AC47: Heavy harrows
B48: trade-in value x annual interest rate** | C48: + | D48: =(C41*C5) -> 2890 | AB48: 90-ft sprayer, pull type | AC48: Harrow packers | AM48: per hour | AN48: implement1 | AO48: implement2 | AQ48: power + return+operator
B49: Total capital recovery | E49: =D47+D48 -> 13699.60467 | F49: =IFERROR(E49/$E$39,0) -> 136.9960467 | G49: =IFERROR(F49/($C$15),0) -> 13.43098497 | AB49: 90-ft sprayer, self propelled | AC49: Vertical tillage tools | AM49: trade in | AN49: =E38-C41 -> 112200 | AO49: =E60-C63 -> 0 | AP49: =SUM(AN49:AO49) -> 112200
AB50: 9-ft mower conditioner | AC50: Land roller | AM50: cap recovery rate | AN50: =D68 -> 0
B51: Insurance & housing = | D51: ="purchase price x "&$C$6*100&" %" -> purchase price x 1 % | E51: =E38*C6 -> 1700 | F51: =IFERROR(E51/$E$39,0) -> 17 | G51: =IFERROR(F51/($C$15),0) -> 1.666666667 | AB51: 13-ft rotary mower/conditioner | AC51: Land scraper | AN51: =AN49*AN50 -> 0 | AO51: =AO49*AN50 -> 0 | AP51: =SUM(AN51:AO51) -> 0
B52: Total Fixed Cost | E52: =SUM(E45:E51) -> 15399.60467 | F52: 153.9960467 | G52: =IFERROR(F52/($C$15),0) -> 15.09765164 | H52: (C) | AB52: Square baler | AC52: Post pounder | AM52: interest | AN52: =C41*C39 -> 58956000 | AO52: =C63*C61 -> 0
AB53: Round baler 1,000 lb | AC53: Vertical feed mixer | AN53: =SUM(AN51:AN52) -> 58956000 | AO53: =SUM(AO51:AO52) -> 0 | AP53: =SUM(AN53:AO53) -> 58956000
B54: Annual Operating Cost | AB54: Round baler 1,500 lb | AC54: Grinder mixers and feed mixers | AM54: insurance | AN54: =E38*0.01 -> 1700 | AO54: =E60*0.01 -> 0 | AP54: =SUM(AN54:AO54) -> 1700
B55: Repairs and maintenance = | D55: annual repair rate x purchase price | E55: =(E38*E42/100) -> 4998 | F55: =IFERROR(E55/$E$39,0) -> 49.98 | G55: =IFERROR(F55/($C$15),0) -> 4.9 | AB55: Large size square baler | AC55: Bale processors | AM55: repairs | AN55: =E38*E42/100 -> 4998 | AO55: =E60*E64/100 -> 0 | AP55: =SUM(AN55:AO55) -> 4998
B56: Total Operating costs | E56: =SUM(E54:E55) -> 4998 | F56: 49.98 | G56: =IFERROR(F56/($C$15),0) -> 4.9 | H56: (D) | AB56: Round baler 1,000 lb/wrapper | AC56: Manure spreader | AM56: Total | AN56: =SUM(AN53,AN54,AN55) -> 58962698 | AO56: =SUM(AO53,AO54,AO55) -> 0 | AP56: =SUM(AN56:AO56) -> 58962698 | AQ56: =E35+(E35*C81)+E85 -> 145076.8929 | AR56: =SUM(AP56:AQ56,AN57:AO57) -> 67952179.59
B57: Total Implement Costs | E57: =SUM(E56,E52) -> 20397.60467 | F57: =SUM(F56,F52) -> 203.9760467 | G57: 19.99765164 | AB57: 2-row forage harvester | AM57: profit | AN57: =AN56*C81 -> 8844404.7 | AO57: =AO56*C81 -> 0
B58: + IMPLEMENT 2 (TILLAGE IMPLEMENT, PTO MACHINE, OTHER) | AB58: Self-propelled forage harvester, 6 row, 15 ft | AM58: per hour | AN58: =IFERROR(AN56/E39,"") -> 589626.98 | AO58: =IFERROR(AO56/E61,"") ->  | AQ58: =IFERROR(AQ56/E12,"") -> 580.3075715 | AR58: =SUM(AN58:AQ58) -> 590207.2876
AB59: Large forage blower
B60: Life (years) | C60: =IF(D58<>"",VLOOKUP(D58,DeprRep,3,FALSE),0) -> 0 | D60: Purchase Price | AB60: 6R – 30-in. corn hd | AM60: ST rental | AN60: implement1 | AO60: implement2 | AQ60: power
B61: Acres/year | C61: =E61*C15 -> 0 | D61: Hours per year | E61: =IF(D58<>"",VLOOKUP(D58,DeprRep,2,FALSE),0) -> 0 | AB61: 12R – 30-in. corn hd | AM61: machine costs | AN61: =AN56 -> 58962698 | AO61: =AO56 -> 0 | AQ61: =E35-E32 -> 95103.8199 | AR61: =SUM(AN61:AQ61) -> 59057801.82
AB62: Grain head 25 ft | AM62: profit | AN62: =AN61*E101 -> 8844404.7 | AO62: =AO61*E101 -> 0 | AQ62: =AQ61*E101 -> 14265.57298 | AR62: =SUM(AN62:AQ62) -> 8858670.273
B63: Trade in Value** | C63: =IF(E63="","",E60-(E60*E63/100*C60)) -> 0 | D63: Annual depreciation rate (%) from Table 3 | E63: =IF(D58<>"",VLOOKUP(D58,DeprRep,4,FALSE),0) -> 0 | AB63: Grain head 35 ft | AM63: total | AN63: =SUM(AN61:AN62) -> 67807102.7 | AO63: =SUM(AO61:AO62) -> 0 | AQ63: =SUM(AQ61:AQ62) -> 109369.3929 | AR63: =SUM(AR61:AR62) -> 67916472.09
D64: Annual repair rate (%) from Table 3 | E64: =IF(D58<>"",VLOOKUP(D58,DeprRep,5,FALSE),0) -> 0 | AM64: per hour | AN64: =IFERROR(AN63/E39,"") -> 678071.027 | AO64: =IFERROR(AO63/E61,"") ->  | AQ64: =IFERROR(AQ63/E12,"") -> 437.4775715 | AR64: =SUM(AN64:AQ64) -> 678508.5046
B65: Annual Fixed Cost | E65: Total annual $ | F65: $ per hour | G65: $ per acre
B66: Capital recovery*
B67: purchase price – trade-in value | D67: =(E60-C63) -> 0
B68: capital recovery factor (from Table 4) | C68: x | D68: =IFERROR((C5*(1+C5)^C60)/((1+C5)^C60-1),0) -> 0
D69: =IFERROR(D67*D68,0) -> 0
B70: trade-in value x annual interest rate** | C70: + | D70: =(C63*C5) -> 0
B71: Total capital recovery | E71: =D69+D70 -> 0 | F71: =IFERROR(E71/$E$61,0) -> 0 | G71: =IFERROR(E71/($E$61*$C$15),0) -> 0
B73: Insurance & housing = | D73: ="purchase price x "&$C$6*100&" %" -> purchase price x 1 % | E73: =E60*C6 -> 0 | F73: =IFERROR(E73/$E$61,0) -> 0 | G73: =IFERROR(E73/($E$61*$C$15),0) -> 0
B74: Total Fixed Cost | E74: =SUM(E67:E73) -> 0 | F74: 0 | G74: =IFERROR(E74/($E$61*$C$15),0) -> 0 | H74: (C)
B76: Annual Operating Cost
B77: Repairs and maintenance = | D77: Annual repair rate x purchase price | E77: =(E60*E64/100) -> 0 | F77: =IFERROR(E77/$E$61,0) -> 0 | G77: =IFERROR(E77/($E$61*$C$15),0) -> 0
B78: Total Operating costs | E78: =SUM(E76:E77) -> 0 | F78: 0 | G78: =IFERROR(E78/($E$61*$C$15),0) -> 0 | H78: (D)
B79: Total Implement Costs | E79: =SUM(E78,E74) -> 0 | F79: 0 | G79: =IFERROR(E79/($E$61*$C$15),0) -> 0
B80: = Annual Machinery Costs (A+B+C+D) | E80: =SUM(E79,E35,E57) -> 139801.4246 | F80: =F79+F57+F35 -> 681.5913263 | G80: =G79+G57+G35 -> 66.82267905 | H80: (E)
B81: Return to management, administration costs | C81: =E8 -> 0.15 | D81: Operator labour (self or hired) per hour | E81: =E7 -> 27
D82: Labour allowance for machine travel, downtime | E82: 0.15
E83: Total annual $ | F83: $ per hour | G83: $ per acre
B84: + Margin (return to management, administration costs) | E84: =E80*C81 -> 20970.21368 | F84: =E84/E12 -> 83.88085474 | G84: =IFERROR(E84/C12,0) -> 8.22361321 | H84: (F)
B85: + Operator labour (self or hired) --- (suggest 15% over machine hour for travel, downtime) # of machinery hours x 1.15 x wage/hour | E85: =E12*E81*(1+E82) -> 7762.5 | F85: =E85/E12 -> 31.05 | G85: =IFERROR(E85/C12,0) -> 3.044117647 | H85: (G)
B86: = Total Costs (E+F+G) | E86: =E80+E84+E85 -> 168534.1382 | H86: (H)
B87: = Custom Rate | D87: Per hour | F87: =F79+F57+F35+F84+F85 -> 796.522181
D88: Per acre | G88: =IFERROR(G79+G57+G35+G84+G85,0) -> 78.0904099
B89: * The capital recovery method estimates the annual depreciation and interest costs. It combines depreciation and
B90: interest costs in one calculation. To calculate the capital recovery costs, the capital recovery factor is multiplied by total
B91: depreciation and adds the result of the trade-in value multiplied by the interest rate. Table 4 provides the capital recovery
B92: factors for selected combinations of years and interest rates.
B93: ** Trade-in value = purchase price – (purchase price x annual depreciation rate (from Table 3) x number of years owned).
B94: *** Interest: Interest calculation is the average annual interest cost of the investment (yours and/or the lender’s) that is tied up in the machine.
B98: Short Term Equipment Rental Rate Calculator | E98: Total annual $ | F98: $ per hour | G98: $ per acre
B99: + Machinery Costs (from Custom Rate Calculator above) | E99: =E80 -> 139801.4246 | F99: =F80 -> 681.5913263 | G99: =G80 -> 66.82267905 | H99: (E)
B100: – Total Fuel and Lubricant cost (if any) (see Custom Rate Calculator above) | E100: =E32 -> 24300 | F100: =F32 -> 97.2 | G100: =G32 -> 9.529411765 | H100: (J)
B101: Return to management percentage | E101: =C81 -> 0.15
B102: + Margin (return to management, admin. costs) suggest 15 % of Machinery Costs ( E – J) x 0.15 | E102: =(E99-E100)*E101 -> 17325.21368 | F102: =(F99-F100)*E101 -> 87.65869894 | G102: =(G99-G100)*E101 -> 8.593990092 | H102: (K)
B103: = Total Costs (E–J+K) | E103: =E99-E100+E102 -> 132826.6382 | H103: (L)
B104: = Rental Rate | D104: Per hour | F104: =F99-F100+F102 -> 672.0500252
D105: Per acre | G105: =G99-G100+G102 -> 65.88725737
B106: Note: Rental Rates may have minimum daily or weekly rates
B109: End of worksheet

Sheet Tables
B1: Tables 4 and 5 scroll right
B3: Table 3, Annual hours of use, optimal life, depreciation and repair rates | H3: Table 4. Capital recovery factors | X3: TABLE 5. Performance, Horsepower and Fuel Requirements of Selected Farm Equipment
B4: Machine | C4: Annual Use (hours) | D4: Optimal Life (years) | E4: Annual Depreciation Rate (% of purchase price) | F4: Annual Repair Rate (% of purchase price) | I4: Interest rate | Y4: Rated Engine HP(1,2) | Z4: Acres/hour(2) | AA4: Litres/acre | AB4: Litres/hour(3)
B5: 2WD tractor | C5: 300 | D5: 20 | E5: 3.3 | F5: 2.31 | H5: Year | I5: 0.02 | J5: 0.03 | K5: 0.04 | L5: 0.05 | M5: 0.06 | N5: 0.07 | O5: 0.08 | P5: 0.09 | Q5: 0.1 | R5: 0.11 | S5: 0.12 | T5: 0.13 | U5: 0.14 | V5: 0.15 | X5: 4–18-in. furrow plow | Y5: 85 | Z5: 2.8 | AA5: 5.828571429 | AB5: 16.32
B6: Front wheel assist tractor | C6: 450 | D6: 15 | E6: 4.4 | F6: 2.73 | H6: 1 | I6: 1.02 | J6: 1.03 | K6: 1.04 | L6: 1.05 | M6: 1.06 | N6: 1.07 | O6: 1.08 | P6: 1.09 | Q6: 1.1 | R6: 1.11 | S6: 1.12 | T6: 1.13 | U6: 1.14 | V6: 1.15 | X6: 6–18-in. furrow plow | Y6: 160 | Z6: 3 | AA6: 10.24 | AB6: 30.72
B7: 4WD tractor | C7: 450 | D7: 15 | E7: 4.4 | F7: 2.63 | H7: 2 | I7: 0.515 | J7: 0.523 | K7: 0.53 | L7: 0.538 | M7: 0.545 | N7: 0.553 | O7: 0.561 | P7: 0.568 | Q7: 0.576 | R7: 0.584 | S7: 0.592 | T7: 0.599 | U7: 0.607 | V7: 0.615 | X7: 8–18-in. furrow plow | Y7: 285 | Z7: 5.6 | AA7: 9.771428571 | AB7: 54.72
B8: Tracked tractor | C8: 450 | D8: 15 | E8: 4.4 | F8: 3.36 | H8: 3 | I8: 0.347 | J8: 0.354 | K8: 0.36 | L8: 0.367 | M8: 0.374 | N8: 0.381 | O8: 0.388 | P8: 0.395 | Q8: 0.402 | R8: 0.409 | S8: 0.416 | T8: 0.424 | U8: 0.431 | V8: 0.438 | X8: 24-ft field cultivator | Y8: 160 | Z8: 9 | AA8: 3.413333333 | AB8: 30.72
B9: SP Rotary combine | C9: 250 | D9: 12 | E9: 5.6 | F9: 2.63 | H9: 4 | I9: 0.263 | J9: 0.269 | K9: 0.275 | L9: 0.282 | M9: 0.289 | N9: 0.295 | O9: 0.302 | P9: 0.309 | Q9: 0.315 | R9: 0.322 | S9: 0.329 | T9: 0.336 | U9: 0.343 | V9: 0.35 | X9: 31-ft field cultivator | Y9: 255 | Z9: 20.6 | AA9: 2.376699029 | AB9: 48.96
B10: Rigid headers | C10: 250 | D10: 20 | E10: 3.3 | F10: 2.1 | H10: 5 | I10: 0.212 | J10: 0.218 | K10: 0.225 | L10: 0.231 | M10: 0.237 | N10: 0.244 | O10: 0.25 | P10: 0.257 | Q10: 0.264 | R10: 0.271 | S10: 0.277 | T10: 0.284 | U10: 0.291 | V10: 0.298 | X10: 44-ft field cultivator | Y10: 305 | Z10: 29.1 | AA10: 2.012371134 | AB10: 58.56
B11: Pickup headers | C11: 250 | D11: 20 | E11: 3.3 | F11: 1.58 | H11: 6 | I11: 0.179 | J11: 0.185 | K11: 0.191 | L11: 0.197 | M11: 0.203 | N11: 0.21 | O11: 0.216 | P11: 0.223 | Q11: 0.23 | R11: 0.236 | S11: 0.243 | T11: 0.25 | U11: 0.257 | V11: 0.264 | X11: 16-ft chisel plow | Y11: 175 | Z11: 9 | AA11: 3.733333333 | AB11: 33.6
B12: Flex headers | C12: 250 | D12: 15 | E12: 4.4 | F12: 2.63 | H12: 7 | I12: 0.155 | J12: 0.161 | K12: 0.167 | L12: 0.173 | M12: 0.179 | N12: 0.186 | O12: 0.192 | P12: 0.199 | Q12: 0.205 | R12: 0.212 | S12: 0.219 | T12: 0.226 | U12: 0.233 | V12: 0.24 | X12: 21-ft chisel plow | Y12: 275 | Z12: 12.6 | AA12: 4.19047619 | AB12: 52.8
B13: Draper headers | C13: 250 | D13: 15 | E13: 4.4 | F13: 2.94 | H13: 8 | I13: 0.137 | J13: 0.142 | K13: 0.149 | L13: 0.155 | M13: 0.161 | N13: 0.167 | O13: 0.174 | P13: 0.181 | Q13: 0.187 | R13: 0.194 | S13: 0.201 | T13: 0.208 | U13: 0.216 | V13: 0.223 | X13: 24-ft tandem disk | Y13: 170 | Z13: 15.1 | AA13: 2.161589404 | AB13: 32.64
B14: Corn headers | C14: 100 | D14: 15 | E14: 4.4 | F14: 2.94 | H14: 9 | I14: 0.123 | J14: 0.128 | K14: 0.134 | L14: 0.141 | M14: 0.147 | N14: 0.153 | O14: 0.16 | P14: 0.167 | Q14: 0.174 | R14: 0.181 | S14: 0.188 | T14: 0.195 | U14: 0.202 | V14: 0.21 | X14: 30-ft tandem disk | Y14: 255 | Z14: 15.3 | AA14: 3.2 | AB14: 48.96
B15: SP Swather | C15: 200 | D15: 15 | E15: 4.4 | F15: 2.1 | H15: 10 | I15: 0.111 | J15: 0.117 | K15: 0.123 | L15: 0.13 | M15: 0.136 | N15: 0.142 | O15: 0.149 | P15: 0.156 | Q15: 0.163 | R15: 0.17 | S15: 0.177 | T15: 0.184 | U15: 0.192 | V15: 0.199 | X15: 10-ft offset disk | Y15: 125 | Z15: 6 | AA15: 4 | AB15: 24
B16: Grain carts | C16: 250 | D16: 20 | E16: 3.3 | F16: 2.1 | H16: 11 | I16: 0.102 | J16: 0.108 | K16: 0.114 | L16: 0.12 | M16: 0.127 | N16: 0.133 | O16: 0.14 | P16: 0.147 | Q16: 0.154 | R16: 0.161 | S16: 0.168 | T16: 0.176 | U16: 0.183 | V16: 0.191 | X16: 16-ft offset disk | Y16: 175 | Z16: 9.6 | AA16: 3.5 | AB16: 33.6
B17: Powered augers | C17: 100 | D17: 20 | E17: 3.3 | F17: 1.58 | H17: 12 | I17: 0.095 | J17: 0.1 | K17: 0.107 | L17: 0.113 | M17: 0.119 | N17: 0.126 | O17: 0.133 | P17: 0.14 | Q17: 0.147 | R17: 0.154 | S17: 0.161 | T17: 0.169 | U17: 0.177 | V17: 0.184 | X17: 21-ft vertical tillage | Y17: 215 | Z17: 19.6 | AA17: 2.106122449 | AB17: 41.28
B18: PTO augers | C18: 100 | D18: 20 | E18: 3.3 | F18: 1.58 | H18: 13 | I18: 0.088 | J18: 0.094 | K18: 0.1 | L18: 0.106 | M18: 0.113 | N18: 0.12 | O18: 0.127 | P18: 0.134 | Q18: 0.141 | R18: 0.148 | S18: 0.156 | T18: 0.163 | U18: 0.171 | V18: 0.179 | X18: 30-ft vertical tillage | Y18: 305 | Z18: 27.2 | AA18: 2.152941176 | AB18: 58.56
B19: Grain vac | C19: 50 | D19: 15 | E19: 4.4 | F19: 2.1 | H19: 14 | I19: 0.083 | J19: 0.089 | K19: 0.095 | L19: 0.101 | M19: 0.108 | N19: 0.114 | O19: 0.121 | P19: 0.128 | Q19: 0.136 | R19: 0.143 | S19: 0.151 | T19: 0.159 | U19: 0.167 | V19: 0.175 | X19: 43-ft vertical tillage | Y19: 420 | Z19: 39.2 | AA19: 2.057142857 | AB19: 80.64
B20: SP Forage harvester | C20: 400 | D20: 10 | E20: 6.7 | F20: 8.4 | H20: 15 | I20: 0.078 | J20: 0.084 | K20: 0.09 | L20: 0.096 | M20: 0.103 | N20: 0.11 | O20: 0.117 | P20: 0.124 | Q20: 0.131 | R20: 0.139 | S20: 0.147 | T20: 0.155 | U20: 0.163 | V20: 0.171 | X20: 12-row strip tillage | Y20: 330 | Z20: 17.5 | AA20: 3.620571429 | AB20: 63.36
B21: SP Forage harvester header | C21: 400 | D21: 10 | E21: 6.7 | F21: 8.4 | H21: 16 | I21: 0.074 | J21: 0.08 | K21: 0.086 | L21: 0.092 | M21: 0.099 | N21: 0.106 | O21: 0.113 | P21: 0.12 | Q21: 0.128 | R21: 0.136 | S21: 0.143 | T21: 0.151 | U21: 0.16 | V21: 0.168 | X21: 6R – 30-in. row crop planter | Y21: 110 | Z21: 7.6 | AA21: 2.778947368 | AB21: 21.12
B22: SP Mower/conditioner | C22: 150 | D22: 15 | E22: 4.4 | F22: 3.36 | H22: 17 | I22: 0.07 | J22: 0.076 | K22: 0.082 | L22: 0.089 | M22: 0.095 | N22: 0.102 | O22: 0.11 | P22: 0.117 | Q22: 0.125 | R22: 0.132 | S22: 0.14 | T22: 0.149 | U22: 0.157 | V22: 0.165 | X22: 12R – 30-in. row crop planter | Y22: 160 | Z22: 15.3 | AA22: 2.007843137 | AB22: 30.72
B23: PT Mower/conditioner (sickle) | C23: 150 | D23: 15 | E23: 4.4 | F23: 2.1 | H23: 18 | I23: 0.067 | J23: 0.073 | K23: 0.079 | L23: 0.086 | M23: 0.092 | N23: 0.099 | O23: 0.107 | P23: 0.114 | Q23: 0.122 | R23: 0.13 | S23: 0.138 | T23: 0.146 | U23: 0.155 | V23: 0.163 | X23: 16R – 30-in. row crop planter | Y23: 175 | Z23: 20.4 | AA23: 1.647058824 | AB23: 33.6
B24: PT Mower/conditioner (disc) | C24: 150 | D24: 15 | E24: 4.4 | F24: 2.63 | H24: 19 | I24: 0.064 | J24: 0.07 | K24: 0.076 | L24: 0.083 | M24: 0.09 | N24: 0.097 | O24: 0.104 | P24: 0.112 | Q24: 0.12 | R24: 0.128 | S24: 0.136 | T24: 0.144 | U24: 0.153 | V24: 0.161 | X24: 6R – 30-in. minimum-till planter | Y24: 85 | Z24: 6.4 | AA24: 2.55 | AB24: 16.32
B25: Hay rake (wheel) | C25: 50 | D25: 20 | E25: 3.3 | F25: 2 | H25: 20 | I25: 0.061 | J25: 0.067 | K25: 0.074 | L25: 0.08 | M25: 0.087 | N25: 0.094 | O25: 0.102 | P25: 0.11 | Q25: 0.117 | R25: 0.126 | S25: 0.134 | T25: 0.142 | U25: 0.151 | V25: 0.16 | X25: 12R – 30-in. minimum-till planter | Y25: 175 | Z25: 15.3 | AA25: 2.196078431 | AB25: 33.6
B26: Round baler | C26: 100 | D26: 15 | E26: 4.4 | F26: 1.58 | X26: 16R – 30-in. minimum-till planter | Y26: 255 | Z26: 20.4 | AA26: 2.4 | AB26: 48.96
B27: Large square baler | C27: 150 | D27: 15 | E27: 4.4 | F27: 1.79 | X27: 25-ft grain drill | Y27: 160 | Z27: 11.7 | AA27: 2.625641026 | AB27: 30.72
B28: Small square baler | C28: 100 | D28: 20 | E28: 3.3 | F28: 1.05 | H28: Tractor example using Table 3 and 4: | X28: 35-ft grain drill | Y28: 255 | Z28: 16.3 | AA28: 3.003680982 | AB28: 48.96
B29: PT round bale mover | C29: 100 | D29: 15 | E29: 4.4 | F29: 2.63 | I29: 310 Horsepower (HP) Four Wheel Drive (4WD) Tractor | X29: 12-ft presswheel drill | Y29: 85 | Z29: 5.1 | AA29: 3.2 | AB29: 16.32
B30: PT large square bale mover | C30: 200 | D30: 20 | E30: 3.3 | F30: 2.1 | H30: Purchase price | I30: 470000 | X30: 20-ft presswheel drill | Y30: 160 | Z30: 8.5 | AA30: 3.614117647 | AB30: 30.72
B31: SP small square bale mover | C31: 150 | D31: 15 | E31: 4.4 | F31: 2.63 | H31: Projected use | I31: 450 hr per year for 5 years | X31: 15-ft no-till drill | Y31: 160 | Z31: 7 | AA31: 4.388571429 | AB31: 30.72
B32: Air drills (independent openers) | C32: 200 | D32: 15 | E32: 4.4 | F32: 3.68 | H32: Depreciaton | I32: Estimated total depreciation over the 5 years: | X32: 20-ft no-till drill | Y32: 200 | Z32: 9.3 | AA32: 4.129032258 | AB32: 38.4
B33: Air hoe drills | C33: 200 | D33: 15 | E33: 4.4 | F33: 3.15 | I33: = 4.4% annual depreciation rate (from Table 3, 4WD tractors) x 5 years x $470,000 = $103,400 total depreciation | X33: 90-ft sprayer, pull type | Y33: 110 | Z33: 49.6 | AA33: 0.4258064516 | AB33: 21.12
B34: Air disk drills | C34: 200 | D34: 15 | E34: 4.4 | F34: 3.15 | H34: Trade-in value | I34: = $470,000 (purchase price) – $103,400 (total depreciation) = $366,600 | X34: 90-ft sprayer, self propelled | Y34: 95 | Z34: 72.5 | AA34: 0.2515862069 | AB34: 16.3
B35: Air seeder | C35: 200 | D35: 15 | E35: 4.4 | F35: 3.15 | X35: 9-ft mower conditioner | Y35: 45 | Z35: 4.4 | AA35: 1.963636364 | AB35: 8.64
B36: Row crop planters | C36: 100 | D36: 10 | E36: 6.7 | F36: 4.2 | H36: Capital recovery: | X36: 13-ft rotary mower/conditioner | Y36: 85 | Z36: 9.7 | AA36: 1.682474227 | AB36: 16.32
B37: Plows | C37: 100 | D37: 20 | E37: 3.3 | F37: 3.68 | I37: = (total depreciation x capital recovery factor)+ (trade-in value x interest rate) | X37: Square baler | Y37: 45 | Z37: 4.4 | AA37: 1.963636364 | AB37: 8.64
B38: Disks | C38: 100 | D38: 20 | E38: 3.3 | F38: 1.58 | I38: = ($103,400 x 0.218 (from Table 5, 3% interest and 5 years)) + ($366,600 x 3%) | X38: Round baler 1,000 lb | Y38: 70 | Z38: 3 | AA38: 4.48 | AB38: 13.44
B39: Cultivators | C39: 200 | D39: 20 | E39: 3.3 | F39: 1.58 | I39: = $22,541 + $10,998 | X39: Round baler 1,500 lb | Y39: 70 | Z39: 4 | AA39: 3.36 | AB39: 13.44
B40: Standard harrows | C40: 75 | D40: 25 | E40: 2.7 | F40: 1.26 | I40: = $33,539 per year capital recovery (depreciation and interest costs). | X40: Large size square baler | Y40: 160 | Z40: 16.3 | AA40: 1.884662577 | AB40: 30.72
B41: Heavy harrows | C41: 100 | D41: 20 | E41: 3.3 | F41: 1.58 | X41: Round baler 1,000 lb/wrapper | Y41: 70 | Z41: 3 | AA41: 4.48 | AB41: 13.44
B42: Harrow packers | C42: 200 | D42: 25 | E42: 2.7 | F42: 0.53 | X42: 2-row forage harvester | Y42: 160 | Z42: 1.4 | AA42: 21.94285714 | AB42: 30.72
B43: Vertical tillage tools | C43: 100 | D43: 20 | E43: 3.3 | F43: 3.68 | X43: Self-propelled forage harvester, 6 row, 15 ft | Y43: 625 | Z43: 5.1 | AA43: 20.6 | AB43: 105
B44: Land roller | C44: 75 | D44: 20 | E44: 3.3 | F44: 1.05 | X44: Large forage blower | Y44: 70 | Z44: — | AA44: — | AB44: 13.44
B45: Land scraper | C45: 80 | D45: 10 | E45: 6.7 | F45: 2.63 | X45: Combine 6R – 30-in. corn hd | Y45: 275 | Z45: 5.1 | AA45: 11.85882353 | AB45: 52.8
B46: High clearance sprayers | C46: 175 | D46: 8 | E46: 8.3 | F46: 3.68 | X46: Combine 12R – 30-in. corn hd | Y46: 375 | Z46: 10.2 | AA46: 8 | AB46: 72
B47: Post pounder | C47: 40 | D47: 20 | E47: 3.3 | F47: 2.1 | X47: Combine grain head 25 ft | Y47: 375 | Z47: 7.4 | AA47: 11.02702703 | AB47: 72
B48: Vertical feed mixer | C48: 200 | D48: 15 | E48: 4.4 | F48: 2.63 | X48: Combine grain head 35 ft | Y48: 375 | Z48: 10.4 | AA48: 7.846153846 | AB48: 72
B49: Grinder mixers and feed mixers | C49: 200 | D49: 15 | E49: 4.4 | F49: 3.15 | H49: End of worksheet | X49: 1. Multiply Engine Horsepower by 0.88 to arrive at PTO horsepower
B50: Bale processors | C50: 200 | D50: 15 | E50: 4.4 | F50: 3.15 | X50: 2. Source: Illinois Machinery Cost Estimates for 2023, University of Illinois, Department of Agricultural and Consumer Economics, 2023.
B51: Manure spreader | C51: 100 | D51: 10 | E51: 6.7 | F51: 4.62 | X51: 3. Source: Nebraska Tractor Test Laboratory, 2018–2024. Tractor fuel consumption results.
B52: Source: Farm Machinery Custom and Rental Rate Guide, Saskatchewan Ministry of Agriculture, 2024-25
X54: End of worksheet
B57: EXAMPLE | C57: Accumulated Repair Cost Calculation
B58: New 425 HP combine with corn header | C58: $820,000 = $740,000 (combine) + $ 170,000 (corn header)
B59: Estimated annual repair rates | C59: 2.63% combine
C60: 2.94% corn head
B61: from Table 3
B62: Estimated annual repair costs | C62: Combine: $740,000 x 2.63% for an average of $19,462/year
C63: Corn header: $170,000 x 2.94% for an average of $4,998/year
C65: Total annual repair costs = $19,462 + $4,998 = $24,460 per year
B66: Used Machinery | C66: When calculating the depreciation on used machinery, use the actual price paid
C67: for the machine minus its expected trade-in or salvage value, divided by the
C68: expected life of the machine on your farm. Increase repair rates to levels
C69: appropriate for the age or number of hours on the machine. Expect to have
C70: higher than normal repair expenses in the first year of ownership of a
C71: used machine as you bring it back into top operating shape
B73: End of worksheet

Sheet Factsheet
A1: GUIDE TO CUSTOM FARMWORK AND SHORT-TERM EQUIPMENT RENTAL
A2: by John Molenhuis
A3: Business Analysis and Cost of Production Program Specialist
A4: Policy Division,
A5: Ontario Ministry of Agriculture, Food and Agribusiness
A7: This factsheet contains the 2024 Survey of Custom Farmwork Rates charged in Ontario and a guide to writing custom farmwork agreements.
A9: https://www.ontario.ca/page/cost-production-crops-and-livestock
A11: End of worksheet

Sheet 2024Rates
B1: Survey of Ontario Custom Farmwork Rates
B2: charged in 2024
B3: John Molenhuis, OMAFA, Business Analysis and Cost of Production Specialist
B4: Infosheet
B5: Survey Details
B6: Survey results of rates charged in 2024 by 200 Ontario custom farmwork operators are summarized on a provincial basis and also by regional areas. The survey received insufficient responses for Area 6. Where available the provincial average 2021 rates are also listed. The 2021 survey is the previous survey to the 2024 survey.
B8: Average Rates
B9: An average rate is given when there are at least 3 reports. The greater the number of reports, the greater the summary reflects the market rates.
B10: The # column indicates the number of responses received for the operation.
B12: What are percentiles and how can you use them?
B13: Percentiles have been used to help show the range of the rates that were charged. For example, in the Provincial Summary, the 15th percentile for corn combining is $54/acre and the 85th percentile is $75/acre. This means that 15% of those surveyed charged $54/acre or less and 15% charged more than $75. Seventy percent (85th –15th percentile) of all those reporting charged between $54 and $75/acre. The average rate charged was $65/acre.
B15: Survey Areas
B17: Area 1
B18: Chatham-Kent, Elgin, Essex, Lambton, Middlesex
B19: Area 2
B20: Brant, Haldimand, Hamilton, Niagara, Norfolk, Oxford
B21: Area 3
B22: Bruce, Dufferin, Grey, Halton, Huron, Peel, Perth, Simcoe, Waterloo, Wellington
B23: Area 4
B24: Durham, Haliburton, Hastings, Kawartha Lakes, Muskoka, Northumberland, Parry Sound, Peterborough, Prince Edward, York
B25: Area 5
B26: Frontenac, Lanark, Leeds-Grenville, Lennox-Addington, Ottawa, Prescott-Russell, Renfrew, Stormont-Dundas-Glengarry
B27: Area 6
B28: Algoma, Cochrane, Kenora, Manitoulin, Nipissing, Rainy River, Sudbury, Thunder Bay, Timiskaming
B54: Survey of Custom Farmwork Rates charged in 2024
B55: CUSTOM OPERATION | D55: Provincial | I55: Area 1 | K55: Area 2 | M55: Area 3 | O55: Area 4 | Q55: Area 5 | S55: Area 6
C56: Unit | D56: # | E56: 2024 | F56: 2024 Percentile | H56: 2021 | I56: # | J56: 2024 | K56: # | L56: 2024 | M56: # | N56: 2024 | P56: 2024 | R56: 2024 | T56: 2024
E57: ave. | F57: 15th | G57: 85th | H57: ave. | J57: ave. | L57: ave. | N57: ave. | O57: # | P57: ave. | Q57: # | R57: ave. | S57: # | T57: ave.
B58: TILLAGE
B59: Moldboard Plow - fixed furrow | C59: ac. | D59: 14 | E59: 37.57142857 | F59: 29.75 | G59: 44.3 | H59: 36.69444444 | I59: 5 | J59: 40.2 | M59: 7 | N59: 33.28571429
C60: hr. | F60: 122.5 | G60: 227.5 | H60: 165.3333333
B61: Moldboard Plow - rollover | C61: ac. | D61: 4 | E61: 39.5 | H61: 38.25
C62: hr. | D62: 4 | E62: 136.25 | M62: 3 | N62: 123.3333333
B63: Moldboard Plow - variable width | C63: ac. | D63: 7 | E63: 40.42857143 | H63: 33.69444444 | M63: 5 | N63: 40.6
C64: hr. | D64: 3 | E64: 203.3333333 | H64: 91.66666667 | M64: 3 | N64: 203.3333333
B65: Chisel Plow/Soil Saver | C65: ac. | D65: 48 | E65: 33.78125 | F65: 25 | G65: 41.9 | H65: 28.68103448 | I65: 10 | J65: 39 | K65: 12 | L65: 34 | M65: 19 | N65: 29.97368421 | Q65: 7 | R65: 36.28571429
C66: hr. | D66: 4 | E66: 225 | H66: 230.5 | M66: 3 | N66: 233.3333333
B67: Disc -Primary tillage | C67: ac. | D67: 40 | E67: 27.9625 | F67: 22.55 | G67: 35 | H67: 24.46875 | I67: 10 | J67: 25.3 | K67: 7 | L67: 28 | M67: 14 | N67: 27.64285714 | Q67: 7 | R67: 30.07142857
C68: hr. | F68: 250 | G68: 250 | H68: 169
B69: Disc -Secondary tillage | C69: ac. | D69: 25 | E69: 27.24 | F69: 19.2 | G69: 35 | H69: 22.75 | I69: 4 | J69: 23.75 | K69: 6 | L69: 24.75 | M69: 8 | N69: 27.5 | Q69: 5 | R69: 28.7
C70: hr. | D70: 4 | E70: 193.75 | H70: 167 | M70: 3 | N70: 208.3333333
B71: Disc - High Speed | C71: ac. | D71: 54 | E71: 30.00925926 | F71: 25 | G71: 35 | H71: 23.94078947 | I71: 13 | J71: 28.46153846 | K71: 8 | L71: 31.4375 | M71: 22 | N71: 29.72727273 | O71: 3 | P71: 30.33333333 | Q71: 7 | R71: 32.71428571
C72: hr. | H72: 547
B73: Vertical tillage | C73: ac. | D73: 47 | E73: 27.95744681 | F73: 23.8 | G73: 35 | H73: 23.61403509 | I73: 15 | J73: 26.4 | K73: 9 | L73: 28.33333333 | M73: 15 | N73: 27.53333333 | O73: 3 | P73: 33.33333333 | Q73: 5 | R73: 30
C74: hr. | H74: 252.75
B75: Strip tillage | C75: ac. | D75: 9 | E75: 39.33333333 | F75: 30 | G75: 43.6 | H75: 29.4 | M75: 6 | N75: 34.16666667
C76: hr.
B77: V ripping | C77: ac. | D77: 10 | E77: 37.35 | F77: 30.45 | G77: 42.6 | H77: 37.57142857 | I77: 6 | J77: 36.83333333
C78: hr. | F78: 300 | G78: 300
B79: Field Cultivate | C79: ac. | D79: 86 | E79: 23.25581395 | F79: 16.5 | G79: 30 | H79: 18.14418605 | I79: 18 | J79: 24.19444444 | K79: 21 | L79: 22.71428571 | M79: 33 | N79: 20.78787879 | O79: 3 | P79: 25 | Q79: 11 | R79: 29.68181818
C80: hr. | D80: 5 | E80: 182 | H80: 265.8888889 | M80: 4 | N80: 190
B81: Harrowing | C81: ac. | D81: 5 | E81: 17 | H81: 12.6 | M81: 4 | N81: 15
C82: hr. | F82: 450 | G82: 450
B83: Deep tillage/Subsoiling | C83: ac. | D83: 18 | E83: 39.96296296 | F83: 35 | G83: 50 | H83: 30.25 | I83: 8 | J83: 40.91666667 | M83: 6 | N83: 35.33333333 | Q83: 3 | R83: 48.33333333
C84: hr.
B85: Soil finisher | C85: ac. | D85: 3 | E85: 29.33333333 | H85: 21.14285714 | I85: 3 | J85: 29.33333333
C86: hr. | F86: 250 | G86: 250
B87: Packer/Rolling | C87: ac. | D87: 56 | E87: 10.69642857 | F87: 6.25 | G87: 14 | H87: 9.080909091 | I87: 6 | J87: 10.5 | K87: 10 | L87: 11.125 | M87: 29 | N87: 9.99137931 | O87: 3 | P87: 12 | Q87: 8 | R87: 12.375
C88: hr. | D88: 3 | E88: 150 | H88: 193.3333333
B89: Stalk Chopping | C89: ac. | D89: 3 | E89: 24.66666667 | H89: 27 | I89: 3 | J89: 24.66666667
C90: hr.
B91: Survey of Custom Farmwork Rates charged in 2024
B92: PLANTING | D92: Provincial | I92: Area 1 | K92: Area 2 | M92: Area 3 | O92: Area 4 | Q92: Area 5 | S92: Area 6
B93: SOYBEANS | D93: # | E93: 2024 | F93: 2024 Percentile | H93: 2021 | I93: # | J93: 2024 | K93: # | L93: 2024 | M93: # | N93: 2024 | P93: 2024 | R93: 2024 | T93: 2024
C94: Unit | E94: ave. | F94: 15th | G94: 85th | H94: ave. | J94: ave. | L94: ave. | N94: ave. | O94: # | P94: ave. | Q94: # | R94: ave. | S94: # | T94: ave.
B95: Conventional Row Planter - 15/20" | C95: ac. | D95: 47 | E95: 32.10638298 | F95: 28 | G95: 37 | H95: 26.7452381 | I95: 19 | J95: 31 | K95: 14 | L95: 32.14285714 | M95: 12 | N95: 33.75
C96: hr.
B97: Conventional Row Planter - 30" | C97: ac. | D97: 25 | E97: 33.24 | F97: 28 | G97: 40 | H97: 26.37894737 | I97: 6 | J97: 30.16666667 | M97: 10 | N97: 31.8 | Q97: 6 | R97: 36.16666667
C98: hr.
B99: Minimum/No-Till Planter - 15/20" | C99: ac. | D99: 54 | E99: 32.01851852 | F99: 26.9 | G99: 37 | H99: 27.87179487 | I99: 15 | J99: 31.4 | K99: 12 | L99: 31.25 | M99: 21 | N99: 31.80952381 | Q99: 6 | R99: 36.16666667
C100: hr.
B101: Minimum/No-Till Planter - 30" | C101: ac. | D101: 10 | E101: 34.8 | F101: 32.35 | G101: 36.65 | H101: 28.07142857 | M101: 6 | N101: 34.33333333 | O101: 3 | P101: 36.66666667 | Q101: 3 | R101: 35
C102: hr.
B103: Strip tillage planter - 15/20" | C103: ac. | D103: 3 | E103: 35
C104: hr.
B105: Strip tillage planter - 30" | C105: ac. | F105: 36 | G105: 36 | H105: 25.4
C106: hr.
B107: Conventional Drill | C107: ac. | D107: 14 | E107: 31.14285714 | F107: 24.85 | G107: 37.05 | H107: 22.8 | K107: 3 | L107: 28.33333333 | M107: 9 | N107: 31
C108: hr. | F108: 22.25 | G108: 32.75
B109: No-Till Drill | C109: ac. | D109: 54 | E109: 32.53703704 | F109: 27.95 | G109: 36.025 | H109: 27.5326087 | I109: 9 | J109: 30.44444444 | K109: 9 | L109: 32.61111111 | M109: 22 | N109: 31.65909091
C110: hr.
B111: Air Seeder | C111: ac. | D111: 56 | E111: 32.89642857 | F111: 28 | G111: 36.875 | H111: 26.34042553 | I111: 6 | J111: 30.83333333 | K111: 11 | L111: 33.40909091 | M111: 28 | N111: 31.775 | O111: 9 | P111: 35.55555556 | Q111: 5 | R111: 34.6
C112: hr.
B114: CUSTOM OPERATION | D114: Provincial | I114: Area 1 | K114: Area 2 | M114: Area 3 | O114: Area 4 | Q114: Area 5 | S114: Area 6
C115: Unit | D115: # | E115: 2024 | F115: 2024 Percentile | H115: 2021 | I115: # | J115: 2024 | K115: # | L115: 2024 | M115: # | N115: 2024 | P115: 2024 | R115: 2024 | T115: 2024
E116: ave. | F116: 15th | G116: 85th | H116: ave. | J116: ave. | L116: ave. | N116: ave. | O116: # | P116: ave. | Q116: # | R116: ave. | S116: # | T116: ave.
B117: PLANTING
B118: CORN
B119: Conventional Row Planter - 15/20 " | C119: ac. | D119: 6 | E119: 34.25 | H119: 30.125
C120: hr.
B121: Conventional Row Planter - 30" | C121: ac. | D121: 92 | E121: 32.74728261 | F121: 28 | G121: 39.35 | H121: 26.60240964 | I121: 18 | J121: 31.66666667 | K121: 19 | L121: 32.26315789 | M121: 39 | N121: 32.12179487 | O121: 5 | P121: 41 | Q121: 11 | R121: 33.81818182
C122: hr. | H122: 451.6
B123: Minimum/No-Till - 15/20" | C123: ac. | D123: 4 | E123: 32.75 | H123: 29.25
C124: hr.
B125: Minimum/No-Till - 30" | C125: ac. | D125: 50 | E125: 34.14 | F125: 28 | G125: 40 | H125: 28.40789474 | I125: 8 | J125: 30.125 | K125: 9 | L125: 33.66666667 | M125: 22 | N125: 32.75 | O125: 6 | P125: 40.75 | Q125: 4 | R125: 40.75
C126: hr.
B127: Strip Tillage - 15/20" | C127: ac. | F127: 34.15 | G127: 34.85
C128: hr.
B129: Strip Tillage - 30" | C129: ac. | D129: 7 | E129: 41.71428571 | H129: 26.67692308 | I129: 3 | J129: 46
C130: hr.
B131: No-Till Drill | C131: ac. | D131: 4 | E131: 32.5 | H131: 33.33333333
C132: hr.
B133: Air Seeder | C133: ac. | D133: 4 | E133: 32.75
C134: hr.
B135: CEREALS (OATS, BARLEY, WHEAT)
B136: Conventional Drill | C136: ac. | D136: 23 | E136: 32.30434783 | F136: 25 | G136: 37.4 | H136: 22.43181818 | I136: 4 | J136: 30.75 | K136: 7 | L136: 31.71428571 | M136: 10 | N136: 31
C137: hr. | F137: 81.75 | G137: 113.25 | H137: 112.5
B138: No-Till Drill | C138: ac. | D138: 44 | E138: 32.15909091 | F138: 25.9 | G138: 36.55 | H138: 26.99038462 | I138: 9 | J138: 29.33333333 | K138: 6 | L138: 29.83333333 | M138: 20 | N138: 31.575 | O138: 7 | P138: 38.07142857
C139: hr. | H139: 226.6666667
B140: Air Seeder | C140: ac. | D140: 54 | E140: 33.22037037 | F140: 29.9 | G140: 36.025 | H140: 26.43902439 | I140: 7 | J140: 31.57142857 | K140: 12 | L140: 34.17916667 | M140: 26 | N140: 33.02884615 | Q140: 6 | R140: 34.16666667
C141: hr.
B142: FORAGES
B143: Drill - single tank | C143: ac. | D143: 11 | E143: 29.54545455 | F143: 23.5 | G143: 35 | H143: 24.2 | K143: 4 | L143: 30.5 | M143: 3 | N143: 28.33333333
C144: hr. | F144: 75 | G144: 75
B145: Drill - multiple products | C145: ac. | D145: 10 | E145: 34.7 | F145: 30.45 | G145: 38 | H145: 27.57 | K145: 3 | L145: 34.33333333 | M145: 4 | N145: 34
C146: hr.
B147: Brillion Type | C147: ac. | F147: 20 | G147: 20
C148: hr.
B149: Broadcast/ATV Spreading | C149: ac. | D149: 10 | E149: 9.5 | F149: 6.175 | G149: 10 | H149: 5.816666667 | K149: 3 | L149: 8.166666667 | M149: 5 | N149: 11.2
C150: hr.
B151: Frost seeding | C151: ac. | D151: 4 | E151: 12.5 | M151: 3 | N151: 13.33333333
C152: hr.
B153: Cover crop planting | C153: ac. | D153: 21 | E153: 30.54761905 | F153: 20 | G153: 40 | H153: 23.15384615 | I153: 3 | J153: 30.33333333 | K153: 5 | L153: 32.2 | M153: 7 | N153: 28.14285714 | O153: 3 | P153: 27.83333333 | Q153: 3 | R153: 36.33333333
C154: hr. | F154: 120 | G154: 120
B157: Survey of Custom Farmwork Rates charged in 2024
B158: CUSTOM OPERATION | D158: Provincial | I158: Area 1 | K158: Area 2 | M158: Area 3 | O158: Area 4 | Q158: Area 5 | S158: Area 6
C159: Unit | D159: # | E159: 2024 | F159: 2024 Percentile | H159: 2021 | I159: # | J159: 2024 | K159: # | L159: 2024 | M159: # | N159: 2024 | P159: 2024 | R159: 2024 | T159: 2024
E160: ave. | F160: 15th | G160: 85th | H160: ave. | J160: ave. | L160: ave. | N160: ave. | O160: # | P160: ave. | Q160: # | R160: ave. | S160: # | T160: ave.
B161: WEED CONTROL
B162: HERBICIDE (excluding herbicide cost)
B163: Pull-type Sprayer | C163: ac. | D163: 17 | E163: 13.23529412 | F163: 10 | G163: 15 | H163: 10.95238095 | I163: 3 | J163: 14 | K163: 3 | L163: 13 | M163: 6 | N163: 11.83333333
C164: hr.
B165: Self Propelled | C165: ac. | D165: 70 | E165: 13.595 | F165: 12 | G165: 15 | H165: 10.96326531 | I165: 16 | J165: 13.903125 | K165: 16 | L165: 13.15625 | M165: 24 | N165: 13.09375 | O165: 4 | P165: 16.125 | Q165: 9 | R165: 14.43888889
C166: hr.
B167: Self Propelled High Clearance Sprayer | C167: ac. | D167: 58 | E167: 14.32241379 | F167: 12 | G167: 16 | H167: 10.90625 | I167: 16 | J167: 13.496875 | K167: 10 | L167: 16.65 | M167: 26 | N167: 14.02884615 | O167: 3 | P167: 15.16666667
C168: hr.
B169: Rope Wick | C169: ac.
C170: hr.
B171: Spray tassled corn (high water volume) | C171: ac. | D171: 32 | E171: 16.44375 | F171: 14 | G171: 18.7 | H171: 13.68541667 | I171: 8 | J171: 15.99375 | K171: 5 | L171: 17.2 | M171: 15 | N171: 16.28333333
C172: hr.
B173: MECHANICAL
B174: Inter-row cultivation | C174: ac. | F174: 21.8 | G174: 30.2 | H174: 14.625
C175: hr.
B176: Rotary Hoe | C176: ac. | F176: 15.75 | G176: 19.25 | H176: 17.33333333
C177: hr. | F177: 85 | G177: 85
B178: Scuffler | C178: ac. | F178: 20 | G178: 20
C179: hr.
B180: Weed zapper | C180: ac.
C181: hr.
B182: Flame weeder | C182: ac.
C183: hr.
B184: FERTILIZER APPLICATION
B185: Spread dry fertilizer | C185: ac. | D185: 44 | E185: 13.25454545 | F185: 10.6125 | G185: 15 | H185: 10.408 | I185: 10 | J185: 13.095 | K185: 10 | L185: 13.55 | M185: 15 | N185: 13.85 | O185: 4 | P185: 13 | Q185: 4 | R185: 12.25
C186: hr.
B187: Spread dry fertilizer - in crop high clearance | C187: ac. | D187: 8 | E187: 15.21875 | F187: 11.7625 | G187: 16.95 | H187: 11.25 | M187: 4 | N187: 16.4375
C188: hr.
B189: Rental of dry bulk applicator | C189: ac.
B190: Rental of dry bulk applicator | C190: mt. | D190: 8 | E190: 18.1875 | F190: 15 | G190: 20.95 | H190: 14 | I190: 4 | J190: 16.375 | M190: 4 | N190: 20
B191: Side-dress Dry fertilizer | C191: ac. | D191: 4 | E191: 22.375 | H191: 14.375
C192: hr.
B193: Anhydrous | C193: ac. | D193: 4 | E193: 13.25 | H193: 20
C194: hr.
B195: Liquid - ground/top dress | C195: ac. | D195: 16 | E195: 15.590625 | F195: 13.2375 | G195: 19.5 | H195: 11.08333333 | I195: 6 | J195: 16.15833333 | K195: 3 | L195: 15.16666667 | M195: 3 | N195: 17 | Q195: 4 | R195: 14
C196: hr.
B197: Liquid side -dress | C197: ac. | D197: 25 | E197: 17.48 | F197: 14 | G197: 22 | H197: 14.95238095 | I197: 13 | J197: 18.07692308 | K197: 5 | L197: 18.8 | M197: 4 | N197: 16.5 | Q197: 3 | R197: 14
C198: hr.
B199: Liquid drop hose, high clearance/late application | C199: ac. | D199: 14 | E199: 18.07142857 | F199: 14.95 | G199: 18.35 | H199: 15.32857143 | M199: 8 | N199: 17.5
C200: hr.
B201: NDVI sensing w/application (Greenseeker) | C201: ac. | F201: 16.95 | G201: 16.95
C202: hr.
B203: SOIL AND MAPPING
B204: Prescription map service | C204: ac. | D204: 3 | E204: 4.666666667 | H204: 3.69
C205: hr.
B206: Elevation mapping | C206: ac. | D206: 3 | E206: 11
C207: hr.
B208: Electrical conductivity | C208: ac. | F208: 5 | G208: 5
C209: hr.
B210: High resolution mapping | C210: ac. | F210: 50 | G210: 50
C211: hr.
B212: Grid sampling | C212: ac. | D212: 4 | E212: 8.75 | H212: 5.3125
C213: hr.
B214: NDVI Mapping | C214: ac.
C215: hr.
B216: Site specific soil sampling | C216: ac. | F216: 10.05 | G216: 42.95 | H216: 8
C217: hr.
B219: Survey of Custom Farmwork Rates charged in 2024
B220: CUSTOM OPERATION | D220: Provincial | I220: Area 1 | K220: Area 2 | M220: Area 3 | O220: Area 4 | Q220: Area 5 | S220: Area 6
C221: Unit | D221: # | E221: 2024 | F221: 2024 Percentile | H221: 2021 | I221: # | J221: 2024 | K221: # | L221: 2024 | M221: # | N221: 2024 | P221: 2024 | R221: 2024 | T221: 2024
E222: ave. | F222: 15th | G222: 85th | H222: ave. | J222: ave. | L222: ave. | N222: ave. | O222: # | P222: ave. | Q222: # | R222: ave. | S222: # | T222: ave.
B223: COMBINING
B224: Corn | C224: ac. | D224: 87 | E224: 65 | F224: 53.8 | G224: 75 | H224: 50.61792453 | I224: 21 | J224: 63.23809524 | K224: 12 | L224: 67.08333333 | M224: 35 | N224: 66.25714286 | O224: 6 | P224: 57.33333333 | Q224: 12 | R224: 67.83333333
C225: hr. | F225: 180 | G225: 180 | H225: 365.25
B226: Corn with chopping corn head | C226: ac. | D226: 49 | E226: 72.83163265 | F226: 60.4 | G226: 85 | H226: 55.08928571 | I226: 5 | J226: 64.4 | K226: 15 | L226: 71.93333333 | M226: 17 | N226: 76.57352941 | Q226: 10 | R226: 71.1
C227: hr.
B229: Soybeans | C229: ac. | D229: 133 | E229: 64.46616541 | F229: 52 | G229: 75 | H229: 50.0248227 | I229: 33 | J229: 57.90909091 | K229: 24 | L229: 67.25 | M229: 50 | N229: 66.14 | O229: 7 | P229: 64.28571429 | Q229: 18 | R229: 69.55555556
C230: hr. | F230: 260 | G230: 260 | H230: 512
B231: Cereals with chopper | C231: ac. | D231: 30 | E231: 66.26666667 | F231: 52.7 | G231: 83.25 | H231: 50.52173913 | I231: 8 | J231: 57.875 | K231: 6 | L231: 71.16666667 | M231: 12 | N231: 69.83333333
C232: hr. | F232: 165.25 | G232: 189.75
B233: Cereals without chopper | C233: ac. | D233: 93 | E233: 65.05376344 | F233: 53.6 | G233: 75 | H233: 49.52564103 | I233: 22 | J233: 58 | K233: 21 | L233: 68.33333333 | M233: 34 | N233: 66.23529412 | O233: 5 | P233: 69 | Q233: 11 | R233: 67.45454545
C234: hr.
... 133 more rows
